{"text_format":"1","workbook":"xlsx","n_sheets":2,"sheets":["feuil1","NATHALIE"],"not_rendered":{"charts":0,"images":2,"macros":1,"external_links":0,"defined_names":2,"comments":0,"pivot_tables":0},"unopened":[],"bounds":{"document_bytes":16777216,"sheet_cells":100000,"rows_first":2000,"rows_last":500,"rows_between":2000,"halvings":0,"cell_chars":16384,"cell_head_chars":4096},"cells_cut":0,"cells_raw":0,"read":"whole","date_system":"1900"}

{"sheet":"feuil1","index":0,"n_rows":107,"n_cols":14,"rows_kept":107,"cut":false,"hidden":false,"merged":[]}
["Nom","semaine","base","heures réalisées","écart brut",null,"DATE"]
["Nathalie",6,28,33,null,null,"2006-12-01"]
["Sophie",5,25,37,null,null,"2006-12-13"]
["jules",10,28,47,null,null,"2006-12-13"]
["Eve",4,27,35,null,null,"2006-12-31"]
["Isabelle",4,28,33,null,null,"2006-12-09"]
["Cathy",6,27,28,null,null,"2006-03-15"]
["eve",8,28,33,null,null,"2014-09-21"]
["noemie",9,35,43,null,null,"2014-09-21",null,null,null,null,null,null,"1 Active les macros sur ton Pc"]
["nathalie",3,28,35,null,"pierre","2006-12-28"]
["nathalie",12,35,49,null,"paul","2014-09-22"]
[null,null,null,null,null,"jacques",null,null,null,null,null,null,null,"2  clique sur le commandButton1"]
[null,null,null,null,null,"albert"]
[null,null,null,null,null,"eve"]
[null,null,null,null,null,"noemie",null,null,null,null,null,null,null,"3 renseigne les fenêtres à l'aide des boutons commandant les listes déroulante"]
[null,null,null,null,null,"sarah"]
[null,null,null,null,null,"luc"]
[null,null,null,null,null,"eric",null,null,null,null,null,null,null,"4 sélectionne la date sur le calendrier"]
[null,null,null,null,null,"alain"]
[null,null,null,null,null,"norah"]
[null,null,null,null,null,"jean",null,null,null,null,null,null,null,"5 clique sur mon avatar insérrer les données"]
[null,null,null,null,null,"aline"]
[null,null,null,null,null,"robert"]
[null,null,null,{"$f":"C24-B24","v":0},{"$f":"D24-C24","v":0},"nicole",null,null,null,null,null,null,null,"Les données apparaîtront ligne 12"]
[null,null,null,0,0,"isabelle"]
[null,null,null,0,0,"catherine"]
[null,null,null,0,0,"charles",null,null,null,null,null,null,null,"ensuite si tu as choisis le prénom natahalie clique sur la feuille nathalie: les données se sont inscrites"]
[null,null,null,0,0,"nathalie",null,null,null,null,null,null,null,"à la dernière ligne de son nom…..Ce n'est qu'un exemple j'aurai pu faire une feuillepar prénom."]
[null,null,null,0,0,"martine"]
[null,null,null,0,0,"maud"]
[null,null,null,0,0,"isabelle",null,null,null,null,null,null,null,"Voilà le principe"]
[null,null,null,0,0,"iseult"]
[null,null,null,null,0,"philippe"]
[null,null,null,null,{"$f":"D34-C34","v":0},"fulbert"]
[null,null,null,null,0,"gontrand"]
[null,null,null,null,0,"gilles"]
[null,null,null,null,0,"emma"]
[null,null,null,null,0,"benjamin "]
[null,null,null,null,0,"bertrand"]
[null,null,null,null,0,"bill"]
[null,null,null,null,0,"sam"]
[null,null,null,null,0,{"$f":"IF(E42<=4,IF(E42<1,E42,(E42-1)*1.1+1),IF(AND(E42<=9.1,(E42>4)),4.3+(E42-4)*1.25,10.55+(E42-9)*1.5))","v":0}]
[null,null,null,null,0,0]
[null,null,null,null,0,0]
[null,null,null,null,0,0]
[null,null,null,null,0,0]
[null,null,null,null,0,0]
[null,null,null,null,0,0]
[null,null,null,null,0,0]
[null,null,null,null,0,0]
[null,null,null,null,0,0]
[null,null,null,null,0,0]
[null,null,null,null,0,0]
[null,null,null,null,0,0]
[null,null,null,null,0,0]
[null,null,null,null,0,0]
[null,null,null,null,0,0]
[null,null,null,null,0,0]
[null,null,null,null,0,0]
[null,null,null,null,0,0]
[null,null,null,null,0,0]
[null,null,null,null,0,0]
[null,null,null,null,0,0]
[null,null,null,null,0,0]
[null,null,null,null,0,0]
[null,null,null,null,{"$f":"D66-C66","v":0},{"$f":"IF(E66<=4,IF(E66<1,E66,(E66-1)*1.1+1),IF(AND(E66<=9.1,(E66>4)),4.3+(E66-4)*1.25,10.55+(E66-9)*1.5))","v":0}]
[null,null,null,null,0,0]
[null,null,null,null,0,0]
[null,null,null,null,0,0]
[null,null,null,null,0,0]
[null,null,null,null,0,0]
[null,null,null,null,0,0]
[null,null,null,null,0,0]
[null,null,null,null,0,0]
[null,null,null,null,0,0]
[null,null,null,null,0,0]
[null,null,null,null,0,0]
[null,null,null,null,0,0]
[null,null,null,null,0,0]
[null,null,null,null,0,0]
[null,null,null,null,0,0]
[null,null,null,null,0,0]
[null,null,null,null,0,0]
[null,null,null,null,0,0]
[null,null,null,null,0,0]
[null,null,null,null,0,0]
[null,null,null,null,0,0]
[null,null,null,null,0,0]
[null,null,null,null,0,0]
[null,null,null,null,0,0]
[null,null,null,null,0,0]
[null,null,null,null,0,0]
[null,null,null,null,0,0]
[null,null,null,null,0,0]
[null,null,null,null,0,0]
[null,null,null,null,0,0]
[null,null,null,null,0,0]
[null,null,null,null,{"$f":"D98-C98","v":0},{"$f":"IF(E98<=4,IF(E98<1,E98,(E98-1)*1.1+1),IF(AND(E98<=9.1,(E98>4)),4.3+(E98-4)*1.25,10.55+(E98-9)*1.5))","v":0}]
[null,null,null,null,0,0]
[null,null,null,null,0,0]
[null,null,null,null,0,0]
[null,null,null,null,0,0]
[null,null,null,null,0,0]
[null,null,null,null,0,0]
[null,null,null,null,0,0]
[null,null,null,null,0,0]
[null,null,null,null,0,0]

{"sheet":"NATHALIE","index":1,"n_rows":9,"n_cols":7,"rows_kept":9,"cut":false,"hidden":false,"merged":[]}
["Nom","semaine","base","heures réalisées","écart brut",null,"DATE"]
["nathalie",3,28,35,null,"pierre","2006-12-01"]
["Nathalie",6,28,33,null,null,"2006-12-28"]
["Nathalie",6,28,33,null,2.1,"2014-09-22"]
["Cathy",6,27,28,null,{"$f":"E4+E5","v":0}]
["Nathalie",8,35,41,6,{"$f":"E5+E6","v":6}]
["Nathalie",9,35,22,-13,{"$f":"E6+E7","v":-7}]
["jules",10,28,47,null,{"$f":"E7+E8","v":-13}]
["nathalie",12,35,49,null,"paul"]